Cogmind - Beta 13 @@@ ROGUE MODE // 2024.06.18 @ 12:15:03 Player: wojo Result: Destroyed self with Shock Bomb Launcher Performance ------------- Evolutions (3) 1500 Regions Visited (8) 1600 Robots Destroyed (84) 420 Value Destroyed (2881) 2881 Prototype IDs (30) 600 Alien Tech Used (0) 0 Bonus (943) 943 TOTAL SCORE: 7944 Bonus ------- High Alert Combat Kills 340 Follower Combat Kills 126 Entered Garrisons 200 Aligned with FarCom 300 Friendly Fire -23 Cogmind --------- Core Integrity 0/700 Matter 152/300 Energy 57/150 System Corruption 7% Temperature Cool (9) Movement Treading (160) Location -7/Factory Parts ------- > --- POWER (2) -------- Micro Nuclear Core > --- PROPULSION (4) --- Light Treads Light Treads VSS Leg > --- UTILITY (5) ------ Improved Targeting Computer Launcher Guidance Computer Hacking Suite > --- WEAPON (2) ------- Shock Bomb Launcher Improved Grenade Launcher > --- INVENTORY (5) ---- Improved Heat Sink Trap Scanner Shock Absorption System Shock Rifle Assault Cannon Peak State ------------ > --- POWER ------------ Light Nuclear Core Light Nuclear Core > --- PROPULSION ------- Aerolev Unit Aerolev Unit Aerolev Unit Aerolev Unit > --- UTILITY ---------- Modified TNC Improved Targeting Computer Hacking Suite Hacking Suite Hacking Suite > --- WEAPON ----------- Precision Shock Rifle Gauss Rifle > --- INVENTORY -------- Aerolev Unit Aerolev Unit Weapon Cycler Advanced Assault Cannon Remote Datajack [Rating: 50] Favorites ----------- Power Light Ion Engine Engine Light Ion Engine Power Core Light Nuclear Core Propulsion Light Treads Treads Light Treads Leg Aluminum Leg Hover Unit Aerolev Unit Flight Unit Cesium-ion Thruster Utility Hacking Suite Device Improved Heat Sink Storage Small Storage Unit Processor Improved Targeting Computer Hackware Hacking Suite Protection Core Shielding Weapon Assault Cannon Energy Gun Particle Gun Energy Cannon Advanced Beam Cannon Ballistic Gun Assault Rifle Ballistic Cannon Assault Cannon Launcher Shock Bomb Launcher Special Weapon Remote Datajack Build | -11 -10 -10 -10 -9 -8 -7 -7 -7 ------- Run | Yrd Mat Min Exi Min Mat Fac Gar Fac Slots Evolved 6 | . . . . . 4 2 . . Power 1 | . . . . . . 1 . . Propulsion 2 | . . . . . 2 . . . Utility 3 | . . . . . 2 1 . . Weapon . | . . . . . . . . . Parts Attached 99 | 7 7 3 . 2 31 10 20 19 Power 13 | 1 . . . 1 5 1 4 1 Engine 4 | 1 . . . 1 1 . 1 . Core 9 | . . . . . 4 1 3 1 Reactor . | . . . . . . . . . Propulsion 20 | 2 1 . . . 12 . 2 3 Treads 5 | 2 1 . . . . . . 2 Leg 3 | . . . . . 2 . . 1 Wheel . | . . . . . . . . . Hover 9 | . . . . . 7 . 2 . Flight 3 | . . . . . 3 . . . Utility 27 | 2 3 2 . . 7 1 2 10 Device 16 | 1 1 2 . . 2 . 2 8 Storage 1 | 1 . . . . . . . . Processor 5 | . 1 . . . 3 . . 1 Hackware 4 | . . . . . 2 1 . 1 Protection 1 | . 1 . . . . . . . Artifact . | . . . . . . . . . Weapon 39 | 2 3 1 . 1 7 8 12 5 Energy Gun 7 | . . 1 . . 1 2 2 1 Energy Cannon 2 | . . . . . 2 . . . Ballistic Gun 5 | 2 1 . . . 1 . 1 . Ballistic Cannon 9 | . 1 . . . 3 1 3 1 Launcher 12 | . . . . 1 . 4 4 3 Special Weapon 4 | . 1 . . . . 1 2 . Impact Weapon . | . . . . . . . . . Slashing Weapon . | . . . . . . . . . Piercing Weapon . | . . . . . . . . . Special Melee Weapon . | . . . . . . . . . Unidentified Prototypes 5 | . . . . . 2 3 . . Corrupted Parts 1 | . . . . . . . . 1 System Corruption 2 | . . . . . . . . 2 Parts Lost 27 | . . . . 1 3 2 18 3 Power 6 | . . . . 1 1 . 4 . Propulsion 8 | . . . . . 2 1 5 . Utility 6 | . . . . . . . 3 3 Weapon 7 | . . . . . . 1 6 . Highest Loss Streak 9 | . . . . 1 2 2 9 2 To Critical Strikes . | . . . . . . . . . Average Slot Usage (%) 90 | . 99 100 100 100 97 98 70 58 Engine 6 | . 14 14 14 14 2 . 4 . Core 3 | . . . . . 6 15 5 4 Treads 14 | . 28 28 28 28 7 . . 4 Leg 1 | . . . . . 5 . . 1 Hover 6 | . . . . . 13 28 15 . Flight 2 | . . . . . 8 . . . Device 10 | . 14 14 14 14 3 . 2 19 Processor 13 | . 2 14 14 14 22 15 8 7 Hackware 7 | . . . . . 10 23 20 8 Energy Gun 4 | . . 13 14 8 . 1 3 3 Ballistic Gun 5 | . 22 1 . . 6 3 . . Ballistic Cannon 8 | . 5 14 14 14 8 2 4 3 Launcher 1 | . . . . 5 1 7 2 3 Naked Turns . | . . . . . . . . . Heaviest Build 29 | 13 13 10 10 12 15 24 29 22 Greatest Support 40 | 40 40 40 40 40 40 32 32 40 Greatest Overweight (x) 7 | . . . . . 1 . 1 7 Average Overweight (x) . | . . . . . . . . 1 Largest Inventory Capacity 8 | 8 8 5 5 5 5 5 5 5 Average Capacity 5 | 7 6 5 5 5 5 5 5 5 Most Carried 5 | 3 5 5 5 5 5 5 5 5 Average Carried 3 | 1 4 4 4 4 4 4 2 2 Final Capacity 8 | 8 5 5 5 5 5 5 5 5 Final Carried 5 | 3 4 5 5 4 5 5 . 5 Class Distribution -------------------- 64% | Mutant 21% | Hacker-Mutant 14% | Scavenger-Mutant Dominant Class ---------------- Mutant | -10/Materials Mutant | -10/Mines Mutant | -10/Exiles Mutant | -9/Mines Mutant | -8/Materials Hacker-Mutant | -7/Factory Hacker-Mutant | -7/Garrison Mutant | -7/Factory Resources | -11 -10 -10 -10 -9 -8 -7 -7 -7 ----------- Run | Yrd Mat Min Exi Min Mat Fac Gar Fac Matter Collected 2429 | 181 183 240 . 29 864 116 667 149 Remotely . | . . . . . . . . . Salvage Created 2393 | 41 181 255 . 11 813 146 802 144 Parts 168 | 5 23 17 . 4 63 8 37 11 Haulers Intercepted 5 | . 1 . . . 2 . . 2 Recyclers Shooed . | . . . . . . . . . Parts Field Recycled . | . . . . . . . . . Retrieved Matter . | . . . . . . . . . Parts Self-Destructed . | . . . . . . . . . Prevented . | . . . . . . . . . Kills | -11 -10 -10 -10 -9 -8 -7 -7 -7 ------- Run | Yrd Mat Min Exi Min Mat Fac Gar Fac Combat Hostiles Destroyed 65 | . 8 7 . 3 19 6 21 1 Guns 24 | . 6 4 . . 12 1 1 . Cannons 21 | . 2 3 . . 7 . 8 1 AOE 19 | . . . . 3 . 5 11 . Classes Destroyed 13 | 1 4 . . . 6 . 1 1 Worker 5 | . . . . . 3 1 . 1 Builder 2 | . . . . . 2 . . . Tunneler 2 | 2 . . . . . . . . Hauler 5 | . 1 . . . 2 . . 2 Recycler 2 | . . . . . 2 . . . Operator 2 | . 1 . . . 1 . . . Watcher 1 | . . . . . 1 . . . Swarmer 22 | . 6 . . 3 10 . 3 . Grunt 31 | . 2 7 . . 6 5 11 . Duelist 2 | . . . . . . . 2 . Sentry 7 | . . . . . 2 1 4 . Hunter 2 | . . . . . 1 . 1 . Programmer 1 | . . . . . . . . 1 Best Kill Streak 12 | 1 4 4 . 3 5 4 12 1 Combat Bots Only 12 | . 3 4 . 3 5 4 12 1 Max Kills in Single Turn 3 | 1 1 1 . 3 2 3 3 1 Gunslinging . | . . . . . . . . . Exploded 3 | . . . . 3 . 3 3 . Melee . | . . . . . . . . . Uniques/NPCs Destroyed . | . . . . . . . . . Combat | -11 -10 -10 -10 -9 -8 -7 -7 -7 -------- Run | Yrd Mat Min Exi Min Mat Fac Gar Fac Hostile Shots Fired 434 | . 36 29 . 7 123 34 183 22 Missed 139 | . 12 10 . 2 35 19 57 4 Damage Taken 3778 | . 210 262 . 78 997 217 1643 371 Core 1107 | . 31 91 . 12 264 60 587 62 Absorbed by Shields 12 | . . . . . . . 12 . Redirected to Shielding 6 | . 6 . . . . . . . Ignored by Resistances 8 | . . . . . . . . 8 Regen/Repaired (Parts) 178 | . . . . . 178 . . . Core Remaining (%) 66 | 100 . . . 46 52 . . . Volleys Fired 180 | 7 28 16 . 1 70 9 38 11 Largest 2 | 2 2 2 . 2 2 2 2 2 Hottest 109 | 40 100 100 . 65 109 103 103 94 Shots Fired 336 | 14 54 32 . 2 136 18 62 18 Gun 160 | 14 38 16 . . 66 4 17 5 Cannon 144 | . 14 16 . 1 70 4 31 8 Launcher 27 | . . . . 1 . 10 11 5 Special 5 | . 2 . . . . . 3 . Kinetic 253 | 14 52 19 . 1 124 4 31 8 Thermal 27 | . 2 13 . . 12 . . . Explosive 24 | . . . . 1 . 10 11 2 Electromagnetic 29 | . . . . . . 4 17 8 Robot Hit Streak 23 | 3 6 9 . 8 18 9 23 9 Robot Miss Streak 5 | 3 4 5 . . 5 1 2 4 Penetration Max 1 | . . . . . 1 . . . Secondary Targets . | . . . . . . . . . Shots Hit Robots 202 | 7 25 24 . 2 82 10 41 11 Core Hits 124 | 3 12 11 . 2 36 14 40 6 Critical Kills . | . . . . . . . . . Critical Parts Destroyed . | . . . . . . . . . Critical Strikes 7 | . 1 1 . . . . 5 . Burn 1 | . . 1 . . . . . . Blast 6 | . 1 . . . . . 5 . Melee Attacks . | . . . . . . . . . Impact . | . . . . . . . . . Slashing . | . . . . . . . . . Piercing . | . . . . . . . . . Sneak Attacks . | . . . . . . . . . Combat Hostiles . | . . . . . . . . . Follow-up Attacks . | . . . . . . . . . Damage Inflicted 6434 | 102 358 426 . 121 1978 962 2188 299 Guns 1840 | 102 262 210 . . 900 67 241 58 Cannons 2103 | . 85 216 . 19 1071 54 602 56 Explosions 2473 | . . . . 102 . 841 1345 185 Melee . | . . . . . . . . . Ramming 18 | . 11 . . . 7 . . . Kinetic 3233 | 102 347 237 . 19 1816 54 602 56 Thermal 369 | . . 189 . . 155 . . 25 Explosive 2401 | . . . . 102 . 841 1345 113 Electromagnetic 413 | . . . . . . 67 241 105 Impact . | . . . . . . . . . Slashing . | . . . . . . . . . Piercing . | . . . . . . . . . Highest Corruption 6 | . . . . . 1 . . 6 Average Corruption 1 | . . . . . 1 . . 2 Corruption Purged . | . . . . . . . . . Corruption Blocked . | . . . . . . . . . Effects 15 | . . . . . 8 . . 7 Message Errors 5 | . . . . . 3 . . 2 Matter Fused 4 | . . . . . 2 . . 2 Heat Flow Errors 2 | . . . . . 1 . . 1 Data Loss (minor) 2 | . . . . . 2 . . . Data Loss (major) 2 | . . . . . . . . 2 Overload Shots . | . . . . . . . . . Overflow Damage 118 | . . . . 11 18 42 47 . Projectiles 18 | . . . . . 18 . . . Explosions 100 | . . . . 11 . 42 47 . Melee . | . . . . . . . . . Knockbacks 24 | . . 2 . . 17 . 5 . Impact . | . . . . . . . . . Kinetic 23 | . . 2 . . 16 . 5 . Secondary 1 | . . . . . 1 . . . Self-Inflicted Damage 292 | . . . . 37 2 65 105 83 Shots 14 | . . . . 1 . 3 4 6 Rammed 7 | 1 3 . . 1 2 . . . Targets Rammed 8 | 1 4 . . 1 2 . . . Kicked . | . . . . . . . . . Crushed 1 | . 1 . . . . . . . Highest Temperature 318 | . 22 201 . . 295 250 318 243 Average Temperature 82 | . 8 53 . . 60 113 111 97 Received Heat Transfer 1065 | . 54 204 . . 261 66 462 18 Effects 4 | . . . . . . . 4 . Energy Bleed 1 | . . . . . . . 1 . Interference 3 | . . . . . . . 3 . Siege Activations . | . . . . . . . . . Robots Corrupted 1 | . . . . . . . 1 . Combat Hostiles 1 | . . . . . . . 1 . Parts Fried 3 | . . . . . . . 3 . Impact Corruptions . | . . . . . . . . . Robots Melted . | . . . . . . . . . Combat Hostiles . | . . . . . . . . . Parts Melted 1 | . . 1 . . . . . . Heat Transferred 938 | . . 518 . . 370 . . 50 Parts Sabotaged . | . . . . . . . . . Parts Stolen . | . . . . . . . . . Parts Stripped . | . . . . . . . . . Power Chain Reactions 1 | . . . . . . . . 1 Alert | -11 -10 -10 -10 -9 -8 -7 -7 -7 ------- Run | Yrd Mat Min Exi Min Mat Fac Gar Fac Peak Influence 945 | 10 227 218 . 80 379 435 945 496 Initial 476 | . 6 35 . . 31 133 304 476 Average 213 | 2 84 141 . 30 96 206 758 383 Maximum Alert Level 3 | . 1 1 . . 1 2 3 2 Low Security (%) 60 | 100 85 63 . 100 83 66 . 4 Level 1 20 | . 14 36 . . 16 22 6 48 Level 2 11 | . . . . . . 10 26 47 Level 3 6 | . . . . . . . 66 . Level 4 . | . . . . . . . . . Level 5 . | . . . . . . . . . High Security . | . . . . . . . . . Max Security . | . . . . . . . . . Squads Dispatched 14 | . 3 . . . 5 3 . 3 Investigation 6 | . 1 . . . 3 2 . . Extermination 2 | . . . . . . . . 2 Reinforcement 5 | . 2 . . . 2 . . 1 Assault . | . . . . . . . . . Garrison 1 | . . . . . . 1 . . Intercept . | . . . . . . . . . Searches Triggered . | . . . . . . . . . Construction Impeded . | . . . . . . . . . Haulers Reinforced . | . . . . . . . . . Active Scanning Responses . | . . . . . . . . . Cargo Convoy Interrupts . | . . . . . . . . . Stealth | -11 -10 -10 -10 -9 -8 -7 -7 -7 --------- Run | Yrd Mat Min Exi Min Mat Fac Gar Fac Distress Signals 4 | . 3 . . . 1 . . . Communications Jammed . | . . . . . . . . . Distress Signals . | . . . . . . . . . Times Spotted 110 | . 23 7 . 3 30 8 35 4 Peak Tracking Total 12 | . 4 4 . 3 4 3 12 3 Tactical Retreats 7 | . . . . . 1 1 5 . Traps | -11 -10 -10 -10 -9 -8 -7 -7 -7 ------- Run | Yrd Mat Min Exi Min Mat Fac Gar Fac Traps Triggered 2 | . . . . . . 1 1 . Indirectly . | . . . . . . . . . Trap Hack Attempts . | . . . . . . . . . Triggered . | . . . . . . . . . Disarmed . | . . . . . . . . . Reprogrammed . | . . . . . . . . . Reused . | . . . . . . . . . Traps Extracted . | . . . . . . . . . Installed . | . . . . . . . . . Triggered . | . . . . . . . . . Machines | -11 -10 -10 -10 -9 -8 -7 -7 -7 ---------- Run | Yrd Mat Min Exi Min Mat Fac Gar Fac Machines Disabled 10 | . . . . . 1 3 4 2 Max in Single Turn 2 | . . . . . 1 2 2 1 Garrison Relay 2 | . . . . . . . 2 . Machines Repaired . | . . . . . . . . . Machines Dismantled . | . . . . . . . . . Machines Sabotaged . | . . . . . . . . . Overloaded Fab Kills . | . . . . . . . . . Hacking | -11 -10 -10 -10 -9 -8 -7 -7 -7 --------- Run | Yrd Mat Min Exi Min Mat Fac Gar Fac Machines Accessed 20 | . 4 . 1 . 9 3 1 2 Terminals 10 | . 3 . . . 4 . 1 2 Fabricators . | . . . . . . . . . Repair Stations 2 | . . . . . 1 1 . . Recycling Units 4 | . 1 . . . 2 1 . . Scanalyzers 2 | . . . . . 2 . . . Garrison Access 1 | . . . . . . 1 . . Total Hacks 43 | . 8 . 1 . 24 6 1 3 Successful 35 | . 8 . 1 . 18 4 1 3 Failed 8 | . . . . . 6 2 . . Catastrophic . | . . . . . . . . . Database Lockouts . | . . . . . . . . . Manual 1 | . . . 1 . . . . . Terminals 16 | . 4 . . . 8 . 1 3 Fabricators . | . . . . . . . . . Repair Stations 9 | . . . . . 6 3 . . Recycling Units 8 | . 4 . . . 2 2 . . Scanalyzers 8 | . . . . . 8 . . . Garrison Access 1 | . . . . . . 1 . . Terminal Hacks 13 | . 4 . 1 . 4 . 1 3 Robot Analysis 1 | . 1 . . . . . . . Prototype ID Bank 1 | . . . . . . . . 1 Open Door 1 | . . . . . . . 1 . Branch Access Points 1 | . 1 . . . . . . . Emergency Access Points 1 | . . . . . . . . 1 Terminal Index 1 | . . . . . 1 . . . Unreport Threat 1 | . . . . . 1 . . . Locate Traps 2 | . . . . . 1 . . 1 Reinforcement Status 1 | . 1 . . . . . . . Zone Layout 2 | . 1 . . . 1 . . . Derelict Proto ID Bank 1 | . . . 1 . . . . . Fabricator Hacks . | . . . . . . . . . Repair Station Hacks 6 | . . . . . 5 1 . . Scan Component 4 | . . . . . 3 1 . . Repair 2 | . . . . . 2 . . . Recycling Unit Hacks 8 | . 4 . . . 2 2 . . Process 1 | . 1 . . . . . . . Report Inventory 4 | . 1 . . . 2 1 . . Retrieve Matter 2 | . 2 . . . . . . . Retrieve Components 1 | . . . . . . 1 . . Scanalyzer 7 | . . . . . 7 . . . Insert Component 4 | . . . . . 4 . . . Analyze 3 | . . . . . 3 . . . Garrison Access Hacks 1 | . . . . . . 1 . . Unlock Access 1 | . . . . . . 1 . . Unauthorized Hacks . | . . . . . . . . . Terminals . | . . . . . . . . . Fabricators . | . . . . . . . . . Repair Stations . | . . . . . . . . . Recycling Units . | . . . . . . . . . Scanalyzers . | . . . . . . . . . Garrison Access . | . . . . . . . . . Data Cores Recovered . | . . . . . . . . . Used . | . . . . . . . . . Hacking Detections 9 | . 2 . . . 5 2 . . Full Trace Events 5 | . 1 . . . 3 1 . . Feedback Events 1 | . . . . . 1 . . . Corruption 1 | . . . . . 1 . . . Feedback Blocked . | . . . . . . . . . Robot Schematics Acquired . | . . . . . . . . . Robots Built . | . . . . . . . . . Authchips . | . . . . . . . . . Time . | . . . . . . . . . Total Robot Build Rating . | . . . . . . . . . Part Schematics Acquired 3 | . . . . . 3 . . . Parts Built . | . . . . . . . . . Authchips . | . . . . . . . . . Time . | . . . . . . . . . Total Part Build Rating . | . . . . . . . . . Parts Repaired 2 | . . . . . 2 . . . Time 76 | . . . . . 76 . . . Parts Recycled . | . . . . . . . . . Recycled Matter 40 | . 40 . . . . . . . Retrieved Matter 40 | . 40 . . . . . . . Retrieved Components 2 | . . . . . . 2 . . Parts Scanalyzed 4 | . . . . . 4 . . . Part Schematics Acquired 3 | . . . . . 3 . . . Parts Damaged 1 | . . . . . 1 . . . Bothacking | -11 -10 -10 -10 -9 -8 -7 -7 -7 ------------ Run | Yrd Mat Min Exi Min Mat Fac Gar Fac Used RIF Installer . | . . . . . . . . . Robots Hacked 1 | . . . . . . . 1 . Non-combat . | . . . . . . . . . Combat 1 | . . . . . . . 1 . Robot Hacks Applied 1 | . . . . . . . 1 . parse_system 1 | . . . . . . . 1 . Relay Couplers Released 9 | . . . . . . . 9 . Machine Destruction 9 | . . . . . . . 9 . Fabnet Peak Effective % . | . . . . . . . . . Robots Rewired . | . . . . . . . . . Allies Hacked . | . . . . . . . . . Hacks Repelled . | . . . . . . . . . Allies | -11 -10 -10 -10 -9 -8 -7 -7 -7 -------- Run | Yrd Mat Min Exi Min Mat Fac Gar Fac Total Allies 6 | . . 1 . 3 . . 2 . Largest Group 3 | . . 1 . 3 3 . 2 . Highest-Rated Group 45 | . . 31 . 40 40 . 45 . Highest-Rated Ally 31 | . . 31 . 16 16 . 25 . Total Orders . | . . . . . . . . . Ally Attacks 41 | . . 8 . . 26 . 7 . Total Damage 702 | . . 126 . . 260 . 316 . Kills 4 | . . 1 . . 2 . 1 . Allies Corrupted . | . . . . . . . . . Allies Melted 2 | . . . . . . . 2 . Intel | -11 -10 -10 -10 -9 -8 -7 -7 -7 ------- Run | Yrd Mat Min Exi Min Mat Fac Gar Fac Robot Analysis Total 1 | . 1 . . . . . . . Derelict Logs Recovered 2 | . . 2 . . . . . . Drone Launches . | . . . . . . . . . Drone Recoveries . | . . . . . . . . . Exploration | -11 -10 -10 -10 -9 -8 -7 -7 -7 ------------- Run | Yrd Mat Min Exi Min Mat Fac Gar Fac Turns Passed 5589 | 115 862 417 688 323 1640 197 508 839 Spaces Moved 4205 | 52 466 224 429 198 1567 374 515 380 Core 357 | 3 . . . . . . 163 191 Treads 1880 | 49 466 224 429 198 357 . . 157 Legs 42 | . . . . . 10 . . 32 Wheels . | . . . . . . . . . Hover 1732 | . . . . . 1006 374 352 . Flight 194 | . . . . . 194 . . . Fastest Speed 38 | 50 160 160 160 160 38 38 38 50 Average Speed 110 | 153 160 160 160 160 77 38 69 201 Slowest Speed 400 | 160 160 160 160 160 190 42 106 400 Overloaded Moves . | . . . . . . . . . Propulsion Burnouts . | . . . . . . . . . Robots Hopped . | . . . . . . . . . Cave-ins Triggered . | . . . . . . . . . Exploration Rate (%) 39 | 3 60 47 89 40 60 7 43 9 Regions Visited 8 Branch Regions 3 Pre-discovered Areas . | . . . . . . . . . Known Exits Taken 2 | . 1 . . . . 1 . . Unknown Exits Taken 5 | 1 . 1 1 1 1 . . . Scrap Searched 2 | . . . . 2 . . . . Spaces Dug 18 | . 2 . . . . 16 . . Terrain Destroyed 205 | . 2 . . 10 14 74 86 19 Melee . | . . . . . . . . . Projectile 18 | . 2 . . . 14 . . 2 AOE 187 | . . . . 10 . 74 86 17 Terrain Rammed . | . . . . . . . . . Walls Destroyed . | . . . . . . . . . Machines Disabled . | . . . . . . . . . Actions | -11 -10 -10 -10 -9 -8 -7 -7 -7 --------- Run | Yrd Mat Min Exi Min Mat Fac Gar Fac Total 4780 | 69 525 251 431 201 1867 407 594 435 Wait 170 | . 6 5 . . 148 1 . 10 Move 4194 | 51 465 223 428 197 1566 373 511 380 Hop . | . . . . . . . . . Pick Up 42 | 3 6 1 1 . 18 4 3 6 Fast Attach 56 | 7 2 2 . . 17 6 8 14 Attach 23 | . 2 . . 1 7 2 8 3 Detach 10 | . 1 . . . 3 2 . 4 Swap 27 | . 3 1 . 1 7 3 10 2 Drop 57 | . 8 3 1 . 29 7 4 5 Fire 180 | 7 28 16 . 1 70 9 38 11 Melee . | . . . . . . . . . Ram 1 | . . . . . 1 . . . Kick . | . . . . . . . . . Crush 7 | 1 4 . . 1 1 . . . Escape Stasis 12 | . . . . . . . 12 . Rewire 1 | . . . 1 . . . . . Trap . | . . . . . . . . . Miscellaneous . | . . . . . . . . . Route ------- -11/Scrapyard -10/Materials (discovered 2 exits: *Mat / *Min) -10/Mines (discovered 2 exits: *Mat / *Exi) -10/Exiles -9/Mines -8/Materials -7/Factory -7/Garrison (discovered 2 exits: *Fac x2) -7/Factory (discovered 1 exit: [*Fac]) History --------- Turn | Location | Event 17 | -11/Scrapyard | Discovered new exit (range 15) 116 | -11/Scrapyard | Entered Materials 309 | -10/Materials | Build established: Mutant 413 | -10/Materials | Identified exit to Mines 455 | -10/Materials | Discovered new exit (range 8) 916 | -10/Materials | Derelicts attacked the area 978 | -10/Materials | Entered Mines 1027 | -10/Mines | Identified exit to Materials 1110 | -10/Mines | Received a Mining Laser from a helpful Derelict 1385 | -10/Mines | Deemed a non-threat by the Exiles lab entrance 1387 | -10/Mines | Discovered new exit (range 5) 1395 | -10/Mines | Entered Exiles 1439 | -10/Exiles | Met 8R-AWN 1463 | -10/Exiles | Met EX-HEX 1515 | -10/Exiles | Met EX-BIN 1544 | -10/Exiles | Aligned with FarCom system 1546 | -10/Exiles | Given EX-Vault access code 1583 | -10/Exiles | Opened EX-Vault 1598 | -10/Exiles | Found Modified TNC 1632 | -10/Exiles | Warned to stay clear of 0b10 Research branches 1685 | -10/Exiles | Met EX-DEC 1756 | -10/Exiles | Visited The Gauntlet 2060 | -10/Exiles | Discovered new exit (range 15) 2083 | -10/Exiles | Left Exiles lab with Modified TNC 2083 | -10/Exiles | Entered Mines 2282 | -9/Mines | Core integrity fell below 50% 2372 | -9/Mines | Discovered new exit (range 9) 2398 | -9/Mines | Assisted by bots powering up and referring to "LRC-V3" 2406 | -9/Mines | Entered Materials 2406 | -8/Materials | Accompanied by 3 allies 2406 | -8/Materials | Evolved 4 slots: Propulsion x2, Utility x2 3166 | -8/Materials | Discovered new exit (range 16) 3413 | -8/Materials | Build established: Scavenger-Mutant 3493 | -8/Materials | Repaired Lgt. Nuclear Core 3531 | -8/Materials | Repaired Assault Cannon 3921 | -8/Materials | Build established: Hacker-Mutant 4046 | -8/Materials | Entered Factory 4046 | -7/Factory | Evolved 2 slots: Power x1, Utility x1 4177 | -7/Factory | Garrison activated, responded to threat 4241 | -7/Factory | Identified exit to Garrison 4243 | -7/Factory | Entered Garrison 4262 | -7/Garrison | Triggered checkpoint 4277 | -7/Garrison | Triggered checkpoint 4440 | -7/Garrison | Lost 3 parts (1p1n1w) 4443 | -7/Garrison | Triggered checkpoint 4445 | -7/Garrison | Destroyed 12 combat bots 4450 | -7/Garrison | Garrison Relay disabled 4469 | -7/Garrison | Rescued a captive Derelict 4470 | -7/Garrison | Rescued a captive Derelict 4557 | -7/Garrison | Triggered checkpoint 4672 | -7/Garrison | Lost 9 parts (2p2n1u4w) 4677 | -7/Garrison | Discovered new exit (range 15) 4688 | -7/Garrison | Attempted to access garrison exit controls, blocked by remote lockdown 4706 | -7/Garrison | Core integrity fell below 50% 4717 | -7/Garrison | Triggered checkpoint 4737 | -7/Garrison | Triggered checkpoint 4737 | -7/Garrison | Triggered checkpoint 4742 | -7/Garrison | Core integrity fell below 20% 4747 | -7/Garrison | Discovered new exit (range 8) 4751 | -7/Garrison | Entered Factory 4773 | -7/Factory | Lost 3 parts (2u1w) 5009 | -7/Factory | Build established: Mutant 5182 | -7/Factory | Discovered new exit (range 9) 5477 | -7/Factory | Build established: Scavenger-Mutant 5590 | -7/Factory | Destroyed self with Shock Bomb Launcher Last Messages --------------- 05549_ Acquired Launcher Guidance Computer. 05553_ R-06 Scavenger collects Imp. Cooling System. 05554_ Dropped Shock Rifle. 05554_ Acquired Imp. Grenade Launcher. 05556_ UNWY2XF#>OX<,8/MJ/3PUAGKNKOZWUA3PT=G 05557_ Dropped Remote Datajack. 05558_ Acquired Shock Rifle. 05561_ R-06 Scavenger collects Remote Datajack. 05578_ Door malfunctions. 05578_ Neutrino Reactor explodes. 05582_ K-01 Serf collects debris. 05583_ Hacking Suite destroyed. 05586_ Neutrino Reactor explodes. 05586_ K-01 Serf collects debris. 05586_ Slug penetrates Wall. 05587_ K-01 Serf destroyed. 05588_ Penetrated by Slug. 05590_ Slug penetrates P-60 Hacker. 05590_ Shock Absorption System destroyed. Map ----- +----------------------------------------------------+ | ????????????????????????????????## ## """ ""#??# | | ????????????????????????????????# # """ ""#??# | | ????????????????????????????????# + #??# | | ????????????????????????????????# # #### | | ????????????????????????????????## ######+######"# | | ?????????????????????????????????# #?#" | | ????????????????????????????????## #### | | ????????????????????????????????# #?# | | ????????????????????????????????# #?### ######## | | ????????????????????????????????# ! #???# #??????? | | ????????????????????????????????## ###??#+#??????? | | ?????????????????????????????????# # ??????????? | | ?????????????????????????????????# # """?????????? | | ?????????????????????????????????# # """"????????? | | ?????????????????? ??????????????# # """" #??????? | | ?????????????????? ###+#########x# """" #??????? | | ????????????????? # """" #??????? | | ?????????????????" x # """" #??????? | | ????????????????T + """" #??????? | | ???????????????? = # #??????? | | ???????????????? + ! #??????? | | ???????????????????? #### ### = #??????? | | ???????????????????????## p ## #??????? | | ???????????????????????# %= ## #??????? | | ???????????????????????# ## #??????? | | ???????????????????????# @ / #########??????? | | ???????????????????????## ##??????????????? | | ????????????????????????# #???????????????? | | ????????????????????????# ] #???????????????? | | ????????????????????????# #???????????????? | | ????????????????????????# #???????????????? | | ????????????????????????##########???????????????? | | ?????????????????????????????????????????????????? | | ??????????????????????????????????Y??????????????? | | ??????????????H??????????????????????????????????? | | ?????????????????????????????????????????????????? | | ?????????????????????????????????????????????????? | | ?????????????????????????????????????????????????? | | ?????????????????????????????????????????????????? | | ?????????????????????????????????????????????????? | | ?????????????????????????????????????????????????? | | ?????????????????????????????????????????????????? | | ?????????????????????????????????????????????????? | | ?????????????????????????????????????????????????? | | ?????????????????????????????????????????????????? | | ?????????????????????????????????????????????????? | | ?????????????????????????????????????????????????? | | ?????????????????????????????????????????????????? | | ?????????????????????????????????????????????????? | | ?????????????????????????????????????????????????? | +----------------------------------------------------+ Best States ------------- Heat Dissipation 75 Energy Generation 25 Energy Capacity 350 Matter Stores 300 Matter Capacity 300 Sight Range 16 Terrain Scan Range 16 Terrain Scan Density 10 Resistance: EX 25 Core Shielding 20 Evasion (%) 57 Targeting Accuracy 12 Launcher Accuracy 20 Recoil Reduction 2 Offensive Hacking 30 Item Schematics ----------------- Hacking Suite | -8/Materials | Scanalyzed Aerolev Unit | -8/Materials | Scanalyzed Remote Datajack | -8/Materials | Scanalyzed Robot Schematics ------------------ None Fabricated ------------ Nothing Alien Tech Used ----------------- None Achievements -------------- None Challenges ------------ None Game ------ Seed FocalSingularityAutogun Manual? 0 Play Time 01:15:07 Cumulative 34.7 hours Start 2024.06.17 @ 01:51:35 End 2024.06.18 @ 12:15:03 Sessions 1 Manual Loads 0 Difficulty Rogue Special Mode None Game No. 58 Rogue 58 Adventurer 0 Explorer 0 Win Type - Total 0 Types 0/0/0/0/0/0/0/0/0 Lore% 23 Gallery% 29 Achievement% 21 Wizard Run 0 Options --------- Layout 1 ASCII 0 Keyboard 0 Movement Arrows Keybinds 0 Fullscreen 1 Font 16/SmallcapsGlow Map View 50x40 Zoom Use 0% Tactical HUD 1 Map Filters NONE Filters NONE Steam SD RUN: 0cd640bd-17f3-4487-b9d0-76e24d580826